bitfinex/quotes_BTCUSD_20241128
["timestamp","ask_amount","ask_price","bid_price","bid_amount"]
[1732757865732,0.1242,96389.0,96388.0,0.103747]
[1732757865942,0.1252,96389.0,96388.0,0.103747]
[1732757866175,0.1262,96389.0,96388.0,0.103747]
[1732757866390,0.1242,96389.0,96388.0,0.103747]
[1732757866606,0.0002,96389.0,96388.0,0.103747]
[1732757866829,0.0022,96389.0,96388.0,0.103747]
[1732757867479,0.0002,96389.0,96388.0,0.103747]
[1732757868372,0.0002,96389.0,96388.0,0.1248973]
[1732757868633,0.0010571,96389.0,96388.0,0.1248973]
[1732757869038,0.0020571,96389.0,96388.0,0.1248973]
[1732757869500,0.0030571,96389.0,96388.0,0.1248973]
[1732757869709,0.0020571,96389.0,96388.0,0.1248973]
[1732757869959,0.0020571,96389.0,96388.0,0.103747]
[1732757870173,0.0020571,96389.0,96382.0,0.207507]
[1732757870174,0.10590231,96389.0,96382.0,0.207506]
[1732757870403,0.10284521,96388.0,96386.0,0.103748]
[1732757870616,0.11016253,96388.0,96381.0,0.311263]
[1732757870828,0.11016253,96388.0,96380.0,0.207511]
[1732757871047,0.11016253,96388.0,96387.0,0.103748]
[1732757871277,0.00731732,96388.0,96387.0,0.103748]
[1732757871738,0.10284521,96388.0,96379.0,0.02068772]
[1732757871957,0.10284521,96387.0,96383.0,0.103752]
[1732757872201,0.11015843,96387.0,96386.0,0.103749]
[1732757872674,0.10284521,96387.0,96386.0,0.103749]
[1732757873317,0.10284521,96387.0,96379.0,0.11355977]
[1732757873318,0.10284521,96387.0,96379.0,0.21731577]
[1732757873557,0.10284521,96387.0,96379.0,0.02068772]
[1732757873558,0.11115843,96387.0,96379.0,0.02068772]
[1732757874015,0.11215843,96387.0,96384.0,0.103751]
[1732757874261,0.11215843,96387.0,96381.0,0.207509]
[1732757874508,0.0483,96386.0,96380.0,0.103755]
[1732757874731,0.10284521,96385.0,96379.0,0.02068772]
[1732757874936,0.11502137,96385.0,96384.0,0.103751]
[1732757876520,0.11602137,96385.0,96384.0,0.103751]
[1732757879363,0.01317616,96385.0,96384.0,0.103751]
[1732757879786,0.001,96385.0,96384.0,0.103751]
[1732757880700,0.0010571,96389.0,96388.0,0.103747]
[1732757882000,0.10390231,96389.0,96380.0,0.09310641]
[1732757882233,0.10284521,96388.0,96380.0,0.09310641]
[1732757882467,0.10284521,96388.0,96383.0,0.103751]
[1732757882692,0.10284521,96388.0,96380.0,0.09310641]
[1732757882693,0.11593834,96387.0,96382.0,0.103753]
[1732757882936,0.20659421,96386.0,96380.0,0.103755]
[1732757883147,0.10375,96385.0,96380.0,0.103755]
[1732757883369,0.10284521,96384.0,96379.0,0.001714]
[1732757883838,0.01217881,96383.0,96379.0,0.001714]
[1732757884049,0.10284521,96382.0,96381.0,0.103754]
[1732757884476,0.11502139,96382.0,96381.0,0.103754]
[1732757884924,0.11502139,96382.0,96379.0,0.001714]
[1732757885157,0.11502139,96382.0,96380.0,0.103755]
[1732757885630,0.11502139,96382.0,96381.0,0.103754]
[1732757886811,0.11502139,96382.0,96381.0,0.001]
[1732757887059,0.11502139,96382.0,96381.0,0.104754]
[1732757887549,0.11502139,96382.0,96381.0,0.105754]
[1732757887797,0.10284521,96382.0,96381.0,0.105754]
[1732757888094,0.10284521,96382.0,96381.0,0.104754]
[1732757888312,0.11502139,96382.0,96381.0,0.104754]
[1732757888779,0.11602139,96382.0,96381.0,0.103754]
[1732757889045,0.01317618,96382.0,96381.0,0.103754]
[1732757889315,0.01417618,96382.0,96381.0,0.208654]
[1732757889556,0.002,96382.0,96381.0,0.208654]
[1732757889797,0.001,96382.0,96381.0,0.39569565]
[1732757890041,0.002,96382.0,96381.0,0.56252732]
[1732757890277,0.001,96382.0,96381.0,0.71252732]
[1732757890505,0.0010571,96389.0,96388.0,0.253747]
[1732757890746,0.0010571,96389.0,96388.0,0.286747]
[1732757890974,0.0010571,96389.0,96388.0,0.63062032]
[1732757891947,0.0010571,96389.0,96388.0,0.63562032]
[1732757892423,1e-07,96389.0,96388.0,0.87746553]
[1732757892648,0.0002,96409.0,96408.0,0.208625]
[1732757892886,0.0002,96409.0,96408.0,0.39656322]
[1732757893115,0.0002,96409.0,96408.0,0.55249832]
[1732757894061,0.0002,96409.0,96408.0,0.55649832]
[1732757894531,0.0002,96409.0,96408.0,0.55249832]
[1732757894750,0.0002,96409.0,96408.0,0.3056127]
[1732757894960,0.0002,96409.0,96408.0,0.3016127]
[1732757895450,0.0002,96429.0,96427.0,0.103705]
[1732757895451,2.53e-05,96428.0,96427.0,0.103705]
[1732757895677,0.10287051,96428.0,96427.0,0.103705]
[1732757896329,0.11519368,96428.0,96427.0,0.103705]
[1732757896762,0.11519368,96428.0,96423.0,0.207417]
[1732757896763,0.11619368,96428.0,96423.0,0.207417]
[1732757896979,0.11619368,96428.0,96408.0,0.20085982]
[1732757896980,0.103711,96422.0,96408.0,0.003]
[1732757897218,0.10284521,96421.0,96405.0,0.023]
[1732757897456,0.10284521,96421.0,96407.0,0.023]
[1732757897676,0.10284521,96421.0,96396.0,0.10295982]
[1732757897677,0.01234386,96420.0,96415.0,0.103717]
[1732757897892,0.10284521,96419.0,96418.0,0.103714]
[1732757898122,0.10284521,96419.0,96415.0,0.103718]
[1732757898352,0.11518644,96419.0,96415.0,0.103718]
[1732757898572,0.11518644,96419.0,96402.0,0.207463]
[1732757898573,0.0457,96411.0,96395.0,0.09295982]
[1732757898796,0.0457,96411.0,96388.0,0.23262829]
[1732757898797,0.0799,96408.0,96391.0,0.09295982]
[1732757899019,0.0799,96408.0,96387.0,0.207495]
[1732757899020,0.10284521,96407.0,96387.0,0.09295982]
[1732757899260,0.10284521,96407.0,96379.0,0.23434229]
[1732757899261,0.103728,96406.0,96380.0,0.207511]
[1732757899480,0.10284521,96405.0,96380.0,0.207511]
[1732757899746,0.11513707,96405.0,96400.0,0.103733]
[1732757899988,0.11513707,96405.0,96380.0,0.207511]
[1732757899989,0.11513707,96405.0,96388.0,0.207494]
[1732757900202,0.11513707,96405.0,96396.0,0.207477]
[1732757900442,0.11513707,96405.0,96400.0,0.103733]
[1732757900870,0.103734,96401.0,96388.0,0.207494]
[1732757901119,0.10284521,96400.0,96380.0,0.023]
[1732757901328,0.21885792,96400.0,96380.0,0.023]
[1732757901545,0.103736,96398.0,96381.0,0.103754]
[1732757901768,0.10284521,96397.0,96380.0,0.023]
[1732757901989,0.11511603,96397.0,96388.0,0.207493]
[1732757902203,0.11511603,96397.0,96380.0,0.023]
[1732757902413,0.11511603,96397.0,96382.0,0.207507]
[1732757902632,0.11511603,96397.0,96396.0,0.001]
[1732757903094,0.11511603,96397.0,96389.0,0.103745]
[1732757903380,0.2075,96386.0,96379.0,0.001714]
[1732757903619,0.227428,96419.0,96379.0,0.001714]
[1732757903620,0.10284521,96385.0,96379.0,0.001714]
[1732757903860,0.11508447,96385.0,96380.0,0.207511]
[1732757904356,0.11508447,96385.0,96384.0,0.103751]
[1732757905791,0.11508447,96385.0,96379.0,0.001714]
[1732757906016,0.11508447,96385.0,96379.0,0.10547]
[1732757906253,0.21883447,96385.0,96381.0,0.001716]
[1732757906478,0.21883447,96385.0,96384.0,0.001]
[1732757906935,0.21883447,96385.0,96381.0,0.001716]
[1732757907159,0.11508447,96385.0,96381.0,0.001716]
[1732757907416,0.11808447,96385.0,96381.0,0.001716]
[1732757907646,0.11808447,96385.0,96384.0,0.103751]
[1732757908788,0.11508447,96385.0,96384.0,0.103751]
[1732757909018,0.11808447,96385.0,96384.0,0.103751]
[1732757909717,0.11908447,96385.0,96382.0,0.103753]
[1732757909956,0.11508447,96385.0,96384.0,0.103751]
[1732757910191,0.11608447,96385.0,96384.0,0.103751]
[1732757910421,0.11808447,96385.0,96384.0,0.103751]
[1732757910877,0.11908447,96385.0,96384.0,0.103751]
[1732757911122,0.11808447,96385.0,96384.0,0.103751]
[1732757911365,0.11808447,96385.0,96382.0,0.103753]
[1732757911599,0.11908447,96385.0,96384.0,0.001]
[1732757911831,0.11608447,96385.0,96384.0,0.001]
[1732757912075,0.11908447,96385.0,96384.0,0.001]
[1732757912576,0.11608447,96385.0,96384.0,0.001]
[1732757912805,0.11508447,96385.0,96382.0,0.103753]
[1732757913017,0.11808447,96385.0,96382.0,0.103753]
[1732757913245,0.11908447,96385.0,96382.0,0.103753]
[1732757913458,0.11608447,96385.0,96382.0,0.103753]
[1732757913675,0.11708447,96385.0,96384.0,0.103751]
[1732757913895,0.12008447,96385.0,96384.0,0.103751]
[1732757914124,0.11808447,96385.0,96384.0,0.103751]
[1732757914347,0.11908447,96385.0,96384.0,0.103751]
[1732757914604,0.11808447,96385.0,96384.0,0.103751]
[1732757914804,0.11808447,96385.0,96382.0,0.103753]
[1732757915372,0.11508447,96385.0,96381.0,0.001716]
[1732757915589,0.11808447,96385.0,96383.0,0.103752]
[1732757915806,0.11808447,96385.0,96384.0,0.103751]
[1732757916228,0.11608447,96385.0,96384.0,0.103751]
[1732757916444,0.11508447,96385.0,96384.0,0.103751]
[1732757916651,0.11808447,96385.0,96384.0,0.103751]
[1732757916861,0.11908447,96385.0,96382.0,0.103753]
[1732757917085,0.11508447,96385.0,96382.0,0.103753]
[1732757917301,0.11508447,96385.0,96383.0,0.103752]
[1732757917541,0.11608447,96385.0,96384.0,0.103751]
[1732757918725,0.11908447,96385.0,96384.0,0.103751]
[1732757918936,0.11908447,96385.0,96382.0,0.103753]
[1732757919151,0.11808447,96385.0,96383.0,0.103751]
[1732757919392,0.11808447,96385.0,96381.0,0.001716]
[1732757919639,0.103753,96382.0,96381.0,0.001716]
[1732757919876,0.20659821,96382.0,96381.0,0.001716]
[1732757920114,0.21876184,96382.0,96381.0,0.001716]
[1732757920850,0.21976184,96382.0,96381.0,0.001716]
[1732757921529,0.11600884,96382.0,96381.0,0.001716]
[1732757921959,0.11800884,96382.0,96381.0,0.001716]
[1732757922637,0.22176184,96382.0,96381.0,0.001716]
[1732757925959,0.38176184,96382.0,96381.0,0.001716]
[1732757926212,0.51046184,96382.0,96381.0,0.001716]
[1732757926466,0.103782,96355.0,96328.0,0.0775]
[1732757926715,0.20662721,96355.0,96339.0,0.103799]
[1732757926949,0.21870383,96355.0,96339.0,0.207599]
[1732757927168,0.21870383,96355.0,96345.0,0.103793]
[1732757927379,0.21870383,96355.0,96346.0,0.103792]
[1732757927591,0.11592183,96355.0,96354.0,0.0027144]
[1732757928097,0.11592183,96355.0,96354.0,0.0017144]
[1732757928098,0.11492183,96355.0,96354.0,0.0017144]
[1732757928987,0.11992183,96355.0,96354.0,0.0017144]
[1732757929210,0.11992183,96355.0,96354.0,0.1054974]
[1732757929425,0.02407662,96355.0,96354.0,0.1064974]
[1732757929637,0.02407662,96355.0,96354.0,0.1054974]
[1732757929638,0.01707662,96355.0,96354.0,0.1054974]
[1732757929882,0.005,96355.0,96354.0,0.1054974]
[1732757930110,0.012,96355.0,96354.0,0.1064974]
[1732757930347,0.012,96355.0,96354.0,0.1054974]
[1732757930597,0.017,96355.0,96354.0,0.1054974]
[1732757931053,0.103769,96368.0,96354.0,0.1054974]
[1732757931279,0.01209468,96370.0,96354.0,0.0017144]
[1732757931280,0.01204443,96355.0,96354.0,0.0017144]
[1732757931498,0.207547,96364.0,96354.0,0.1054974]
[1732757931709,0.103776,96362.0,96354.0,0.1054974]
[1732757931932,0.10284521,96361.0,96354.0,0.0017144]
[1732757932148,0.003,96355.0,96354.0,0.0017144]
[1732757932369,0.10584521,96355.0,96354.0,0.0017144]
[1732757932603,0.11487033,96355.0,96354.0,0.0017144]
[1732757933307,0.01202512,96355.0,96354.0,0.1054974]
[1732757933558,0.01502512,96355.0,96354.0,0.1054974]
[1732757933775,0.004,96364.0,96354.0,0.0017144]
[1732757933987,0.20962721,96355.0,96354.0,0.0017144]
[1732757934202,0.11787033,96355.0,96354.0,0.0017144]
[1732757934446,0.10584521,96355.0,96354.0,0.0017144]
[1732757934655,0.11787033,96355.0,96354.0,0.0017144]
[1732757935074,0.11887033,96355.0,96354.0,0.0017144]
[1732757935513,0.11587033,96355.0,96354.0,0.0017144]
[1732757935915,0.11587033,96355.0,96354.0,0.0027144]
[1732757936159,0.11587033,96355.0,96354.0,0.0017144]
[1732757936590,0.11887033,96355.0,96354.0,0.0017144]
[1732757941437,0.22265233,96355.0,96354.0,0.0017144]
[1732757943518,0.11887033,96355.0,96354.0,0.0017144]
[1732757944167,0.22265233,96355.0,96354.0,0.0017144]
[1732757948061,0.11887033,96355.0,96354.0,0.0017144]
[1732757948735,0.22265233,96355.0,96354.0,0.0017144]
[1732757949212,0.11887033,96355.0,96354.0,0.0017144]
[1732757949434,0.22265233,96355.0,96354.0,0.0017144]
[1732757949666,0.11887033,96355.0,96354.0,0.0017144]
[1732757950378,0.11887033,96355.0,96354.0,0.1054974]
[1732757950601,0.01602512,96355.0,96354.0,0.1054974]
[1732757950825,0.00027184,96355.0,96354.0,0.1054974]
[1732757951060,0.00027184,96355.0,96354.0,0.2292974]
[1732757951740,0.0008585,96368.0,96354.0,0.6408216]
[1732757951955,0.0008585,96368.0,96367.0,0.181369]
[1732757953368,0.0008585,96368.0,96367.0,0.19380004]
[1732757953643,0.0008585,96368.0,96367.0,0.30970086]
[1732757953857,0.0008585,96368.0,96367.0,0.21880004]
[1732757954091,0.0008585,96368.0,96367.0,0.21980004]
[1732757954969,0.0008585,96368.0,96367.0,0.31268366]
[1732757955180,0.0008585,96368.0,96367.0,0.21980004]
[1732757955406,0.0008585,96368.0,96367.0,0.21880004]
[1732757955637,0.0008585,96368.0,96367.0,0.41700004]
[1732757955879,0.0008585,96368.0,96367.0,0.50988366]
[1732757956324,0.0008585,96368.0,96367.0,0.41700004]
[1732757958314,0.0008585,96368.0,96367.0,0.50988366]
[1732757959467,0.0008585,96368.0,96367.0,0.55635127]
[1732757959690,0.0008585,96368.0,96367.0,0.75980257]
[1732757959921,0.0008585,96368.0,96367.0,0.89909826]
[1732757960157,0.0008585,96368.0,96367.0,0.75980243]
[1732757960620,0.0008585,96368.0,96367.0,0.41700004]
[1732757963847,0.0008585,96368.0,96367.0,0.50983921]
[1732757964062,0.0008585,96368.0,96367.0,0.50983943]
[1732757964729,0.0008585,96368.0,96367.0,0.41700004]
[1732757965243,0.0008585,96368.0,96367.0,0.62268464]
[1732757965479,0.0008585,96368.0,96367.0,0.52984525]
[1732757965701,0.0008585,96368.0,96367.0,0.66914334]
[1732757965926,0.0008585,96368.0,96367.0,0.87249115]
[1732757966377,0.0008585,96368.0,96367.0,0.87049115]
[1732757966595,0.103721,96413.0,96407.0,0.103726]
[1732757966824,0.103723,96411.0,96405.0,0.103727]
[1732757967054,0.00612487,96412.0,96386.0,0.173]
[1732757967285,0.00525065,96410.0,96386.0,0.173]
[1732757967520,0.00525211,96411.0,96386.0,0.173]
[1732757967749,0.00524985,96409.0,96386.0,0.173]
[1732757967966,0.14914521,96414.0,96386.0,0.173]
[1732757967967,0.00525098,96410.0,96409.0,0.103724]
[1732757968225,0.10284521,96414.0,96386.0,0.173]
[1732757968443,0.10284521,96414.0,96412.0,0.10372]
[1732757968930,0.10284521,96414.0,96408.0,0.103725]
[1732757969151,0.10284521,96414.0,96409.0,0.103723]
[1732757969393,0.00525436,96413.0,96410.0,0.103722]
[1732757970059,0.00525436,96413.0,96412.0,0.001]
[1732757970276,0.00525436,96413.0,96411.0,0.103722]
[1732757971151,0.00525436,96413.0,96408.0,0.207451]
[1732757971393,0.00525436,96413.0,96412.0,0.103721]
[1732757971842,0.103707,96425.0,96412.0,0.207443]
[1732757972064,0.10284521,96422.0,96419.0,0.103713]
[1732757972277,0.10812201,96422.0,96418.0,0.103714]
[1732757972501,0.10812201,96422.0,96413.0,0.207439]
[1732757972760,0.10812201,96422.0,96406.0,0.207453]
[1732757972761,0.10812201,96422.0,96417.0,0.103715]
[1732757972977,0.10812201,96422.0,96419.0,0.103713]
[1732757973200,0.10812201,96422.0,96420.0,0.103712]
[1732757973436,0.11012201,96422.0,96420.0,0.103712]
[1732757973680,0.11012201,96422.0,96419.0,0.001]
[1732757974120,0.11012201,96422.0,96419.0,0.104713]
[1732757974334,0.11012201,96422.0,96419.0,0.001]
[1732757974984,0.10812201,96422.0,96415.0,0.207436]
[1732757975208,0.10812201,96422.0,96419.0,0.104713]
[1732757975455,0.10812201,96422.0,96419.0,0.001]
[1732757975684,0.0072768,96422.0,96421.0,0.103711]
[1732757975933,0.0052768,96422.0,96421.0,0.103711]
[1732757976158,0.01250666,96434.0,96427.0,0.103705]
[1732757976673,0.01250666,96434.0,96421.0,0.207423]
[1732757976891,0.103699,96433.0,96426.0,0.103705]
[1732757977125,0.01250666,96434.0,96427.0,0.103705]
[1732757977342,0.2082145,96452.0,96427.0,0.103705]
[1732757977343,0.1502,96449.0,96427.0,0.103705]
[1732757977788,0.15,96446.0,96427.0,0.10430238]
[1732757978001,0.1502,96449.0,96427.0,0.10430238]
[1732757978227,0.103684,96447.0,96427.0,0.10430238]
[1732757978439,0.15,96446.0,96427.0,0.10430238]
[1732757978897,0.103685,96446.0,96427.0,0.10430238]
[1732757979179,0.001858,96428.0,96427.0,0.10430238]
[1732757980349,0.001858,96428.0,96427.0,0.10445602]
[1732757982387,0.001858,96428.0,96427.0,0.10465842]
[1732757983992,0.001858,96428.0,96427.0,0.10554028]
[1732757984704,0.001858,96428.0,96414.0,0.207438]
[1732757984954,0.001858,96428.0,96422.0,0.10371]
[1732757985190,0.001858,96428.0,96413.0,0.01203762]
[1732757985419,0.10900711,96427.0,96414.0,0.207438]
[1732757985646,0.00530111,96427.0,96419.0,0.02042394]
[1732757985882,0.10900611,96427.0,96421.0,0.103711]
[1732757986079,0.00530111,96427.0,96420.0,0.103712]
[1732757986351,0.00530111,96427.0,96417.0,0.207432]
[1732757986594,0.00530111,96427.0,96423.0,0.103709]
[1732757986835,0.00530111,96427.0,96419.0,0.207427]
[1732757987302,0.00530111,96427.0,96417.0,0.207432]
[1732757987303,0.00530111,96427.0,96421.0,0.103711]
[1732757987533,0.00530111,96427.0,96418.0,0.20743]
[1732757987780,0.10814632,96427.0,96402.0,0.207462]
[1732757988014,0.10814632,96427.0,96411.0,0.103722]
[1732757988015,0.103715,96418.0,96411.0,0.103722]
[1732757988260,0.207415,96425.0,96407.0,0.103726]
[1732757988493,0.207415,96425.0,96404.0,0.0822]
[1732757988494,0.00616696,96417.0,96409.0,0.103724]
[1732757988733,0.10284521,96424.0,96410.0,0.12474203]
[1732757988734,0.103709,96423.0,96410.0,0.12474203]
[1732757988964,0.207415,96425.0,96410.0,0.12474203]
[1732757988965,0.10898393,96416.0,96410.0,0.12474203]
[1732757989195,0.103717,96416.0,96410.0,0.103723]
[1732757989453,0.00526689,96415.0,96411.0,0.002]
[1732757990380,0.103721,96412.0,96411.0,0.002]
[1732757990605,0.10372,96413.0,96407.0,0.001]
[1732757990819,0.00616039,96412.0,96407.0,0.001]
[1732757991031,0.00616039,96412.0,96410.0,0.104722]
[1732757991285,0.00615908,96411.0,96410.0,0.104722]
[1732757991505,0.00615908,96411.0,96410.0,0.103722]
[1732757991719,0.002,96412.0,96410.0,0.103722]
[1732757992019,0.00615908,96411.0,96410.0,0.001]
[1732757992254,0.10988108,96411.0,96405.0,0.103728]
[1732757992494,0.00615908,96411.0,96401.0,0.207466]
[1732757992706,0.207447,96410.0,96400.0,0.02047785]
[1732757992925,0.00815908,96411.0,96400.0,0.02047785]
[1732757992926,0.103726,96407.0,96401.0,0.103733]
[1732757993164,0.103727,96407.0,96401.0,0.103733]
[1732757993412,0.0061525,96406.0,96401.0,0.103733]
[1732757993641,0.0475,96404.0,96382.0,0.0822]
[1732757993884,0.10284521,96403.0,96384.0,0.207502]
[1732757994099,0.103742,96393.0,96384.0,0.207502]
[1732757994317,0.103741,96394.0,96387.0,0.103748]
[1732757994559,0.00735004,96392.0,96391.0,0.103744]
[1732757994784,0.00735004,96392.0,96385.0,0.207501]
[1732757994785,0.00735162,96393.0,96385.0,0.207501]
[1732757995023,0.00735004,96392.0,96390.0,0.103744]
[1732757995241,0.00735004,96392.0,96387.0,0.02109588]
[1732757995453,0.00734846,96391.0,96390.0,0.103744]
[1732757995911,0.103739,96396.0,96390.0,0.103744]
[1732757996139,0.00734846,96391.0,96390.0,0.103744]
[1732757996387,0.207475,96397.0,96387.0,0.02109588]
[1732757996633,0.00734054,96391.0,96371.0,0.0925405]
[1732757996868,0.10284521,96396.0,96378.0,0.103758]
[1732757996869,0.103749,96387.0,96378.0,0.103758]
[1732757997118,0.103754,96382.0,96377.0,0.02100475]
[1732757997360,0.10284521,96390.0,96368.0,0.1764575]
[1732757997361,0.00522187,96386.0,96375.0,0.12465065]
[1732757997645,0.103757,96379.0,96371.0,0.207531]
[1732757997877,0.103757,96379.0,96373.0,0.103762]
[1732757998120,0.00608203,96378.0,96373.0,0.103762]
[1732757998598,0.103757,96379.0,96373.0,0.103762]
[1732757998833,0.103757,96379.0,96374.0,0.103761]
[1732757999061,0.10984003,96378.0,96372.0,0.12468062]
[1732757999309,0.10984003,96378.0,96373.0,0.003]
[1732757999532,0.00608203,96378.0,96373.0,0.212526]
[1732757999824,0.00608203,96378.0,96374.0,0.103761]
[1732758000062,0.103756,96380.0,96374.0,0.103761]
[1732758000316,0.0060694,96377.0,96372.0,0.004]
[1732758000536,0.103763,96373.0,96372.0,0.004]
[1732758001007,0.26138798,96373.0,96372.0,0.004]
[1732758001714,0.26138798,96373.0,96368.0,0.001717]
[1732758001715,0.103767,96369.0,96368.0,0.001717]
[1732758001925,0.20661221,96369.0,96368.0,0.001717]
[1732758002172,0.21385579,96369.0,96368.0,0.001717]
[1732758005210,0.01324358,96369.0,96368.0,0.001717]
[1732758005419,0.01324358,96369.0,96368.0,0.105485]
[1732758005863,0.006,96369.0,96368.0,0.105485]
[1732758006327,0.01326014,96369.0,96368.0,0.105485]
[1732758006578,0.006,96369.0,96368.0,0.105485]
[1732758007048,0.01203159,96369.0,96368.0,0.105485]
[1732758008607,0.01203159,96369.0,96368.0,0.001717]
[1732758008832,0.11579859,96369.0,96368.0,0.001717]
[1732758009064,0.2186438,96369.0,96368.0,0.001717]
[1732758011418,0.01203159,96369.0,96368.0,0.105485]
[1732758011631,0.01203159,96369.0,96368.0,0.001717]
[1732758011864,0.006,96369.0,96368.0,0.001717]
[1732758012306,0.01324995,96369.0,96368.0,0.001717]
[1732758012529,0.006,96369.0,96368.0,0.001717]
[1732758013039,0.01324995,96369.0,96368.0,0.001717]
[1732758013252,0.006,96369.0,96368.0,0.001717]
[1732758013469,0.11701695,96369.0,96368.0,0.001717]
[1732758013720,0.109767,96369.0,96368.0,0.001717]
[1732758013942,0.3434653,96369.0,96368.0,0.001717]
[1732758018643,0.2396983,96369.0,96355.0,0.00056536]
[1732758018875,0.103781,96356.0,96355.0,0.00056536]
[1732758019127,0.20662621,96356.0,96355.0,0.00056536]
[1732758019367,0.21384903,96356.0,96355.0,0.00056536]
[1732758020770,0.00722282,96356.0,96355.0,0.23134736]
[1732758021226,0.103769,96367.0,96355.0,0.18634636]
[1732758021462,0.10684521,96369.0,96355.0,0.00056536]
[1732758021724,0.10956766,96366.0,96355.0,0.103781]
[1732758021965,0.103771,96366.0,96356.0,0.10378]
[1732758022209,0.00579508,96365.0,96349.0,0.14996845]
[1732758022433,0.12412226,96363.0,96337.0,0.082]
[1732758022677,0.103784,96354.0,96343.0,0.103795]
[1732758022966,0.10284521,96362.0,96331.0,0.02103498]
[1732758022967,0.20663021,96353.0,96331.0,0.02103498]
[1732758023207,0.00577613,96353.0,96331.0,0.02103498]
[1732758023449,0.00577613,96353.0,96352.0,0.09140199]
[1732758023670,0.207532,96371.0,96332.0,0.023]
[1732758023890,0.10284521,96369.0,96351.0,0.082]
[1732758024147,0.10284521,96369.0,96362.0,0.103774]
[1732758024380,0.00580303,96368.0,96351.0,0.082]
[1732758024617,0.10284521,96367.0,96361.0,0.103775]
[1732758024843,0.001,96363.0,96352.0,0.207572]
[1732758025070,0.001,96363.0,96358.0,0.103778]
[1732758025303,0.005799,96362.0,96353.0,0.20757]
[1732758025581,0.005799,96362.0,96358.0,0.103778]
[1732758025813,0.10284521,96367.0,96351.0,0.082]
[1732758026048,0.10284521,96367.0,96360.0,0.103776]
[1732758026507,0.001,96362.0,96351.0,0.082]
[1732758026727,0.001,96362.0,96361.0,0.103776]
[1732758027170,0.001,96362.0,96361.0,0.335776]
[1732758027620,0.0008585,96369.0,96368.0,0.103768]
[1732758029417,0.0008585,96369.0,96368.0,0.253768]
[1732758029645,0.0008585,96369.0,96368.0,0.406768]
[1732758030101,0.0008585,96369.0,96368.0,0.403768]
[1732758031528,0.0008585,96369.0,96368.0,0.407768]
[1732758032010,0.0008585,96369.0,96368.0,0.342768]
[1732758032447,0.0008585,96369.0,96368.0,0.339768]
[1732758032899,0.0008585,96369.0,96368.0,0.342768]
[1732758033619,0.0008585,96369.0,96368.0,0.110768]
[1732758033839,0.0008585,96369.0,96368.0,0.106768]
[1732758034526,0.0008585,96369.0,96368.0,0.103768]
[1732758034744,0.0008585,96369.0,96368.0,0.105768]
[1732758035189,0.0008585,96369.0,96368.0,0.103768]
[1732758035642,0.0008585,96369.0,96368.0,0.324268]
[1732758036079,0.0008585,96369.0,96368.0,0.323268]
[1732758036536,0.0008585,96369.0,96368.0,0.276768]
[1732758036986,0.0008585,96369.0,96368.0,0.253768]
[1732758037411,0.0008585,96369.0,96368.0,0.254768]
[1732758038042,0.0008585,96369.0,96368.0,0.256768]
[1732758038332,0.0008585,96369.0,96368.0,0.253768]
[1732758038571,0.0008585,96369.0,96368.0,0.255768]
[1732758038808,0.0008585,96369.0,96368.0,0.257768]
[1732758039049,0.0008585,96369.0,96368.0,0.002]
[1732758039289,0.1046255,96369.0,96368.0,0.002]
[1732758039526,0.0008585,96369.0,96368.0,0.004]
[1732758039766,0.00516352,96369.0,96368.0,0.004]
[1732758040008,0.0008585,96369.0,96368.0,0.004]
[1732758040247,0.0008585,96369.0,96368.0,0.002]
[1732758040248,0.00516352,96369.0,96368.0,0.002]
[1732758040492,0.00516352,96369.0,96368.0,0.004]
[1732758040957,0.00516352,96369.0,96362.0,0.1054908]
[1732758041185,0.00716352,96369.0,96363.0,0.103773]
[1732758041428,0.00716352,96369.0,96362.0,0.0017168]
[1732758041647,0.0028585,96369.0,96362.0,0.0017168]
[1732758041888,0.00429902,96368.0,96362.0,0.0017168]
[1732758042104,0.103769,96368.0,96362.0,0.0017168]
[1732758042319,0.00429824,96367.0,96362.0,0.0017168]
[1732758042770,0.10377,96367.0,96362.0,0.0017168]
[1732758043024,0.103774,96363.0,96362.0,0.0017168]
[1732758043259,0.33231921,96363.0,96362.0,0.0017168]
[1732758043511,0.33660952,96363.0,96362.0,0.0017168]
[1732758044437,0.33860952,96363.0,96362.0,0.0017168]
[1732758044668,0.33660952,96363.0,96362.0,0.0017168]
[1732758045115,0.33860952,96363.0,96362.0,0.0027168]
[1732758045332,0.34260952,96363.0,96362.0,0.0027168]
[1732758047873,0.35468936,96363.0,96362.0,0.0027168]
[1732758051302,0.44275265,96363.0,96362.0,0.0027168]
[1732758051527,0.52468936,96363.0,96362.0,0.0027168]
[1732758052509,0.52068936,96363.0,96362.0,0.0027168]
[1732758052749,0.52668936,96363.0,96362.0,0.0037168]
[1732758053206,0.52068936,96363.0,96362.0,0.0027168]
[1732758053484,0.51868936,96363.0,96362.0,0.0017168]
[1732758053713,0.52768936,96363.0,96362.0,0.0027168]
[1732758054194,0.51868936,96363.0,96362.0,0.0017168]
[1732758054419,0.52768936,96363.0,96362.0,0.0027168]
[1732758054658,0.53668936,96363.0,96362.0,0.0037168]
[1732758061831,0.53754776,96363.0,96362.0,0.0037168]
[1732758062588,0.01,96358.0,96338.0,0.001717]
[1732758062817,0.41377376,96363.0,96319.0,0.001715]
[1732758062818,0.10382,96320.0,96319.0,0.001715]
[1732758063073,0.20666521,96320.0,96319.0,0.001715]
[1732758063298,0.21089806,96320.0,96319.0,0.001715]
[1732758064253,0.37089806,96320.0,96319.0,0.001715]
[1732758065174,0.37089806,96320.0,96319.0,0.002715]
[1732758065175,0.37989806,96320.0,96319.0,0.002715]
[1732758065391,0.39203599,96320.0,96319.0,0.002715]
[1732758066100,0.39803599,96320.0,96319.0,0.003715]
[1732758069182,0.40803599,96320.0,96319.0,0.003715]
[1732758069430,0.103848,96294.0,96293.0,0.001716]
[1732758069654,0.20669321,96294.0,96293.0,0.001716]
[1732758069872,0.2108828,96294.0,96293.0,0.001716]
[1732758071046,0.2188828,96294.0,96293.0,0.001716]
[1732758071504,0.2311319,96294.0,96293.0,0.001716]
[1732758071725,0.2188828,96294.0,96293.0,0.001716]
[1732758071970,0.2228828,96294.0,96293.0,0.001716]
[1732758076242,0.1190348,96294.0,96293.0,0.001716]